Cogmind - Beta 12 @@@ ROGUE MODE // 2023.04.18 @ 19:21:42 Player: MrProgressor Result: Destroyed by G-34 Mercenary with Small Laser Performance ------------- Evolutions (0) 0 Regions Visited (2) 400 Robots Destroyed (13) 65 Value Destroyed (314) 314 Prototype IDs (0) 0 Alien Tech Used (0) 0 Bonus (0) 0 TOTAL SCORE: 779 Bonus ------- None Cogmind --------- Core Integrity 0/250 Matter 209/300 Energy 6/100 System Corruption 11% Temperature Cool (6) Movement Core (200) Ox3 Location -10/Mines Parts ------- > --- POWER (1) -------- (None) > --- PROPULSION (2) --- (None) > --- UTILITY (2) ------ Medium Storage Unit > --- WEAPON (2) ------- Mining Laser Mining Laser > --- INVENTORY (10) --- Hover Unit Hover Unit Hover Unit Large Matter Pod (0) Signal Interpreter Peak State ------------ > --- POWER ------------ Light Ion Engine > --- PROPULSION ------- Wheel Compact Wheel > --- UTILITY ---------- Medium Storage Unit Improved Terrain Scanner > --- WEAPON ----------- Medium Laser Light Assault Rifle > --- INVENTORY -------- Light Ion Engine Light Treads Light Treads Light Treads Light Treads Small Storage Unit Large Matter Pod Seismic Detector Light Assault Rifle Mining Laser [Rating: 10] Favorites ----------- Power Light Ion Engine Engine Light Ion Engine Propulsion Compact Wheel Treads Light Treads Leg Aluminum Leg Wheel Compact Wheel Hover Unit Hover Unit Utility Improved Terrain Scanner Device Improved Terrain Scanner Storage Medium Storage Unit Weapon Light Assault Rifle Energy Gun Medium Laser Ballistic Gun Light Assault Rifle Special Weapon Mining Laser Build | -11 -10 -10 ------- Run | Jun Mat Min Slots Evolved . | . . . Power . | . . . Propulsion . | . . . Utility . | . . . Weapon . | . . . Parts Attached 23 | 1 13 9 Power 1 | . . 1 Engine 1 | . . 1 Core . | . . . Reactor . | . . . Propulsion 14 | . 10 4 Treads 4 | . 4 . Leg . | . . . Wheel 8 | . 6 2 Hover 2 | . . 2 Flight . | . . . Utility 4 | 1 2 1 Device 2 | 1 . 1 Storage 2 | . 2 . Processor . | . . . Hackware . | . . . Protection . | . . . Artifact . | . . . Weapon 4 | . 1 3 Energy Gun . | . . . Energy Cannon . | . . . Ballistic Gun 1 | . 1 . Ballistic Cannon . | . . . Launcher . | . . . Special Weapon 3 | . . 3 Impact Weapon . | . . . Slashing Weapon . | . . . Piercing Weapon . | . . . Special Melee Weapon . | . . . Unidentified Prototypes . | . . . Parts Lost 11 | . 4 7 Power 2 | . . 2 Propulsion 4 | . 2 2 Utility 1 | . . 1 Weapon 4 | . 2 2 Highest Loss Streak 7 | . 4 7 To Critical Strikes . | . . . Average Slot Usage (%) 94 | . 96 86 Engine 13 | . 14 11 Treads 8 | . 10 . Leg 2 | . 2 . Wheel 15 | . 13 24 Device 11 | . 11 11 Storage 16 | . 16 14 Energy Gun 10 | . 12 . Ballistic Gun 13 | . 14 12 Special Weapon 1 | . . 9 Naked Turns . | . . . Heaviest Build 17 | 12 17 16 Greatest Support 40 | 20 40 26 Greatest Overweight (x) 1 | . 1 . Average Overweight (x) . | . . . Largest Inventory Capacity 10 | 8 10 10 Average Capacity 9 | 8 9 10 Most Carried 10 | 8 10 9 Average Carried 8 | 6 8 8 Final Capacity 10 | 8 10 10 Final Carried 9 | 8 9 5 Class Distribution -------------------- 84% | Mutant 15% | Scavenger-Mutant Dominant Class ---------------- Mutant | -10/Materials Mutant | -10/Mines Resources | -11 -10 -10 ----------- Run | Jun Mat Min Matter Collected 387 | 221 166 . Remotely . | . . . Salvage Created 477 | 58 406 13 Parts 22 | 7 14 1 Haulers Intercepted 1 | . 1 . Recyclers Shooed 3 | . 3 . Parts Field Recycled . | . . . Retrieved Matter . | . . . Parts Self-Destructed . | . . . Prevented . | . . . Kills | -11 -10 -10 ------- Run | Jun Mat Min Combat Hostiles Destroyed 8 | . 7 1 Guns 7 | . 7 . Cannons 1 | . . 1 Classes Destroyed 4 | 1 3 . Tunneler 3 | 3 . . Hauler 1 | . 1 . Recycler 1 | . 1 . Grunt 8 | . 7 1 Best Kill Streak 7 | 1 7 1 Combat Bots Only 6 | . 6 1 Max Kills in Single Turn 1 | 1 1 1 Gunslinging . | . . . Exploded . | . . . Melee . | . . . Uniques/NPCs Destroyed . | . . . Combat | -11 -10 -10 -------- Run | Jun Mat Min Damage Taken 1268 | . 863 405 Core 256 | . 171 85 Absorbed by Shields . | . . . Core Remaining (%) 100 | 100 . . Volleys Fired 66 | 11 45 10 Largest 2 | 2 2 2 Hottest 120 | 70 70 120 Shots Fired 113 | 22 77 14 Gun 103 | 22 77 4 Cannon . | . . . Launcher . | . . . Special 10 | . . 10 Kinetic 58 | 11 43 4 Thermal 55 | 11 34 10 Explosive . | . . . Electromagnetic . | . . . Robot Hit Streak 15 | 5 15 5 Robot Miss Streak 4 | 2 4 3 Penetration Max . | . . . Secondary Targets 3 | . 3 . Max Gunslinging Chain 1 | . 1 . Shots Hit Robots 70 | 12 54 4 Core Hits 26 | 3 21 2 Critical Kills 1 | . 1 . Critical Parts Destroyed 1 | 1 . . Critical Strikes 5 | 2 3 . Burn 3 | 1 2 . Destroy 2 | 1 1 . Melee Attacks . | . . . Impact . | . . . Slashing . | . . . Piercing . | . . . Sneak Attacks . | . . . Combat Hostiles . | . . . Follow-up Attacks . | . . . Damage Inflicted 687 | 139 469 79 Guns 615 | 139 469 7 Cannons . | . . . Explosions . | . . . Melee . | . . . Ramming . | . . . Kinetic 250 | 52 191 7 Thermal 437 | 87 278 72 Explosive . | . . . Electromagnetic . | . . . Impact . | . . . Slashing . | . . . Piercing . | . . . Highest Corruption 11 | . 2 11 Average Corruption 2 | . 2 3 Corruption Purged . | . . . Corruption Blocked . | . . . Overload Shots . | . . . Overflow Damage . | . . . Projectiles . | . . . Explosions . | . . . Melee . | . . . Knockbacks . | . . . Impact . | . . . Kinetic . | . . . Secondary . | . . . Self-Inflicted Damage . | . . . Shots . | . . . Rammed . | . . . Targets Rammed . | . . . Kicked . | . . . Crushed . | . . . Highest Temperature 474 | 50 474 116 Average Temperature 127 | 23 178 49 Received Heat Transfer 566 | . 468 98 Effects 9 | . 9 . Shutdowns 2 | . 2 . Interference 2 | . 2 . Matter Decay 1 | . 1 . Damage (major) 4 | . 4 . Siege Activations . | . . . Robots Corrupted . | . . . Combat Hostiles . | . . . Parts Fried . | . . . Impact Corruptions . | . . . Robots Melted . | . . . Combat Hostiles . | . . . Parts Melted . | . . . Heat Transferred 1445 | 333 962 150 Parts Sabotaged . | . . . Parts Stolen . | . . . Parts Stripped . | . . . Power Chain Reactions . | . . . Missiles Intercepted . | . . . Alert | -11 -10 -10 ------- Run | Jun Mat Min Peak Influence 160 | 15 160 128 Initial 62 | . 9 62 Average 56 | 7 58 86 Maximum Alert Level . | . . . Low Security (%) 100 | 100 100 100 Level 1 . | . . . Level 2 . | . . . Level 3 . | . . . Level 4 . | . . . Level 5 . | . . . High Security . | . . . Max Security . | . . . Squads Dispatched 4 | . 4 . Investigation 3 | . 3 . Extermination . | . . . Reinforcement 1 | . 1 . Assault . | . . . Garrison . | . . . Intercept . | . . . Searches Triggered . | . . . Construction Impeded . | . . . Haulers Reinforced . | . . . Active Scanning Responses . | . . . Cargo Convoy Interrupts . | . . . Stealth | -11 -10 -10 --------- Run | Jun Mat Min Distress Signals 1 | . 1 . Communications Jammed . | . . . Distress Signals . | . . . Times Spotted 18 | . 12 6 Peak Tracking Total 7 | . 7 4 Tactical Retreats 1 | . . 1 Traps | -11 -10 -10 ------- Run | Jun Mat Min Traps Triggered 1 | . 1 . Indirectly . | . . . Trap Hack Attempts . | . . . Triggered . | . . . Disarmed . | . . . Reprogrammed . | . . . Reused . | . . . Traps Extracted . | . . . Installed . | . . . Triggered . | . . . Machines | -11 -10 -10 ---------- Run | Jun Mat Min Machines Disabled . | . . . Max in Single Turn . | . . . Machines Repaired . | . . . Machines Sabotaged . | . . . Overloaded Fab Kills . | . . . Hacking | -11 -10 -10 --------- Run | Jun Mat Min Machines Accessed 4 | . 4 . Terminals 2 | . 2 . Fabricators . | . . . Repair Stations . | . . . Recycling Units 2 | . 2 . Scanalyzers . | . . . Garrison Access . | . . . Total Hacks 12 | . 12 . Successful 6 | . 6 . Failed 6 | . 6 . Catastrophic . | . . . Database Lockouts . | . . . Manual 6 | . 6 . Terminals 10 | . 10 . Fabricators . | . . . Repair Stations . | . . . Recycling Units 2 | . 2 . Scanalyzers . | . . . Garrison Access . | . . . Terminal Hacks 4 | . 4 . Robot Analysis 2 | . 2 . Branch Access Points 1 | . 1 . Locate Traps 1 | . 1 . Fabricator Hacks . | . . . Repair Station Hacks . | . . . Recycling Unit Hacks . | . . . Scanalyzer . | . . . Garrison Access Hacks . | . . . Unauthorized Hacks 2 | . 2 . Terminals . | . . . Fabricators . | . . . Repair Stations . | . . . Recycling Units 2 | . 2 . Tunnel 2 | . 2 . Scanalyzers . | . . . Garrison Access . | . . . Data Cores Recovered . | . . . Used . | . . . Hacking Detections 2 | . 2 . Full Trace Events 2 | . 2 . Feedback Events . | . . . Feedback Blocked . | . . . Robot Schematics Acquired . | . . . Robots Built . | . . . Authchips . | . . . Time . | . . . Total Robot Build Rating . | . . . Part Schematics Acquired . | . . . Parts Built . | . . . Authchips . | . . . Time . | . . . Total Part Build Rating . | . . . Parts Repaired . | . . . Time . | . . . Parts Recycled . | . . . Recycled Matter . | . . . Retrieved Matter . | . . . Retrieved Components . | . . . Parts Scanalyzed . | . . . Part Schematics Acquired . | . . . Parts Damaged . | . . . Bothacking | -11 -10 -10 ------------ Run | Jun Mat Min Used RIF Installer . | . . . Robots Hacked . | . . . Non-combat . | . . . Combat . | . . . Robot Hacks Applied . | . . . Relay Couplers Released . | . . . Fabnet Peak Effective % . | . . . Robots Rewired . | . . . Allies Hacked . | . . . Hacks Repelled . | . . . Allies | -11 -10 -10 -------- Run | Jun Mat Min Total Allies . | . . . Largest Group . | . . . Highest-Rated Group . | . . . Highest-Rated Ally . | . . . Total Orders . | . . . Ally Attacks . | . . . Total Damage . | . . . Kills . | . . . Allies Corrupted . | . . . Allies Melted . | . . . Intel | -11 -10 -10 ------- Run | Jun Mat Min Robot Analysis Total 2 | . 2 . Derelict Logs Recovered . | . . . Drone Launches . | . . . Drone Recoveries . | . . . Exploration | -11 -10 -10 ------------- Run | Jun Mat Min Turns Passed 730 | 98 508 124 Spaces Moved 428 | 54 309 65 Core . | . . . Treads 37 | . 37 . Legs 93 | 54 39 . Wheels 298 | . 233 65 Hover . | . . . Flight . | . . . Fastest Speed 90 | 120 90 90 Average Speed 103 | 120 104 90 Slowest Speed 160 | 120 160 90 Overloaded Moves . | . . . Propulsion Burnouts . | . . . Robots Hopped . | . . . Cave-ins Triggered 1 | . . 1 Exploration Rate (%) 20 | 4 43 15 Regions Visited 2 Branch Regions 1 Pre-discovered Areas 2 | . 2 . Known Exits Taken 1 | . 1 . Unknown Exits Taken 1 | 1 . . Scrap Searched . | . . . Spaces Dug 5 | . . 5 Terrain Destroyed 7 | . . 7 Melee . | . . . Projectile 7 | . . 7 AOE . | . . . Terrain Rammed . | . . . Walls Destroyed . | . . . Machines Disabled . | . . . Actions | -11 -10 -10 --------- Run | Jun Mat Min Total 591 | 67 427 97 Wait 56 | . 43 13 Move 426 | 53 308 65 Hop . | . . . Pick Up 13 | 2 11 . Fast Attach 1 | 1 . . Attach 11 | . 7 4 Detach . | . . . Swap 11 | . 6 5 Drop 7 | . 7 . Fire 66 | 11 45 10 Melee . | . . . Ram . | . . . Kick . | . . . Crush . | . . . Escape Stasis . | . . . Rewire . | . . . Trap . | . . . Miscellaneous . | . . . Route ------- -11/Junkyard -10/Materials (discovered 2 exits: *Min x2) -10/Mines History --------- Turn | Location | Event 1 | -11/Junkyard | Discovered new exit (range 2) 99 | -11/Junkyard | Entered Materials 193 | -10/Materials | Identified exit to Mines 311 | -10/Materials | Build established: Mutant 563 | -10/Materials | Core integrity fell below 50% 599 | -10/Materials | Lost 4 parts (2n2w) 607 | -10/Materials | Entered Mines 608 | -10/Mines | Assembled infested the area 716 | -10/Mines | Crushed by falling debris 716 | -10/Mines | Core integrity fell below 20% 716 | -10/Mines | System corruption reached 10% 731 | -10/Mines | Destroyed by G-34 Mercenary with Small Laser Last Messages --------------- squad. 00608_ K-01 Serf collects debris. 00680_ K-01 Serf destroyed. 00683_ as-01124 destroyed. 00706_ Lgt. Ion Engine destroyed. 00709_ G-47 Trooper destroyed. 00716_ The unstable cave ceiling collapses. 00716_ Crushed by falling debris. 00716_ Wheel destroyed. 00716_ System corrupted by crushing effect (+4). 00716_ Imp. Terrain Scanner destroyed. 00716_ System corrupted by crushing effect (+2). 00716_ Lgt. Ion Engine destroyed. 00716_ System corrupted by crushing effect (+3). 00717_ Mining Laser destroyed. 00721_ Lgt. Assault Rifle destroyed. 00722_ The unstable cave ceiling collapses. 00722_ G-34 Mercenary crushed by falling debris. 00722_ 13 Matter crushed. 00725_ Com. Wheel destroyed. Map ----- +----------------------------------------------------+ | ?????????????????????????????????????????????????? | | ?????????????????????????????????????????????????? | | ?????????????????????????????????????????????????? | | ?????????????????????????????????????????????????? | | ?????????????????????????????????????????????????? | | ?????????????????????????????????????????????????? | | ?????????????????????????????????????????????????? | | ?????????????????????????????????????????????????? | | ?????????????????????????????????????????????????? | | ?????????????????????????????????????????????????? | | ?????????????????????????????????????????????????? | | ?????????????????????????????????????????????????? | | ?????????????????????????????????????????????????? | | ?????????????????????????????????????????????????? | | ?????????????????????????????????????????????????? | | ?????????????????????????????????????????????????? | | ?????????????????#??? ????????? ???? ????????????? | | ????????????#?????????????#??????????????????????? | | ?????????????????????????????????????????????????? | | ????????????????????#????????????????????????????? | | ?????????????????????????????????????????????????? | | ???????????????#????????????????#????????????????? | | ?????????????????????????????????????????????????? | | ??????????#?#?????????????#???#??????????????????? | | ????#??????????#?????#?####??????????????????????? | | ????????????????#?????###@#??????????????????????? | | ???????????????????#?###g #??#???????????????????? | | ?????#################"####??????????????????????? | | ?????# ##?????????????????????????? | | ?????# #??????????????????????????? | | ?????# """ #????#??????#??????????????? | | ?????# """ =% ##################?????????? | | ?????# """ ??????? | | ?????# =% ??????? | | ?#???# """ """ """ ##############?????????????? | | ?????# """ """ """ % #??????????????????????????? | | ?????# """ """ """ #????#?????????????????????? | | ?????# #?????????????????#????????? | | ?????# """ """ """ ##????#????????????????????? | | ?????# """ """ """ ##?????????????????????????? | | ?????# """ """ """ #?#????????????????????????? | | ?????# #????##????????????????????? | | ?????###### ##########??????????????????????????? | | ??????????# #???###?????????????????????????????? | | ??????????# #???????????????????????????????????? | | ?????????? ?????????#????##???????????????????? | | ????#????# #??????????????????????????????????? | | ?????????# ####??????????????????????????????????? | | ????????? ??????????????????????????????????????? | | ????????###??????????????????????????????????????? | +----------------------------------------------------+ Best States ------------- Heat Dissipation 25 Energy Generation 10 Energy Capacity 125 Matter Stores 300 Matter Capacity 450 Sight Range 16 Terrain Scan Range 16 Terrain Scan Density 10 Evasion (%) 55 Recoil Reduction 2 Item Schematics ----------------- None Robot Schematics ------------------ None Fabricated ------------ Nothing Alien Tech Used ----------------- None Achievements -------------- None Challenges ------------ None Game ------ Seed HoverDroneReconstructor Manual? 0 Play Time 00:19:52 Cumulative 162.1 hours Start 2023.04.18 @ 19:00:08 End 2023.04.18 @ 19:21:42 Sessions 1 Manual Loads 0 Difficulty Rogue Special Mode None Game No. 56 Rogue 56 Adventurer 0 Explorer 0 Win Type - Total 1 Types 1/0/0/0/0/0/0/0/0 Lore% 52 Gallery% 62 Achievement% 46 Wizard Run 0 Options --------- ASCII 0 Keyboard 0 Movement Numpad Keybinds 1 Fullscreen 2 Font 18/X11 Map View 76x50 Tactical HUD 1 Map Filters NONE Filters NONE Steam 1 RUN: fbefe477-be8e-4312-a230-e0a33deec70a